fUSD/lending_fUSD_20240318
["ID","MTS","AMOUNT","RATE_DAILY","PERIOD"]
[319464718,1710796248065,-954.510321,0.00021098,2]
[319464719,1710796248074,-152.217525,0.00021098,2]
[319464720,1710796248084,-151.0,0.00021098,2]
[319464721,1710796248093,-151.0,0.00021098,2]
[319464722,1710796248103,-151.0,0.00021098,2]
[319464723,1710796248112,-234.86085,0.00021098,2]
[319464724,1710796248122,-151.0,0.00021098,2]
[319464725,1710796248131,-151.0,0.00021098,2]
[319464726,1710796248140,-151.0,0.00021098,2]
[319464727,1710796248150,-151.0,0.00021098,2]
[319464728,1710796248160,-151.0,0.00021098,2]
[319464729,1710796248169,-151.0,0.00021098,2]
[319464730,1710796248179,-151.0,0.00021098,2]
[319464731,1710796248189,-262.67246,0.00021098,2]
[319464732,1710796248199,-262.67246,0.00021098,2]
[319464733,1710796248211,-151.0,0.00021098,2]
[319464734,1710796248221,-151.0,0.00021098,2]
[319464735,1710796248231,-170.259477,0.00021098,2]
[319464736,1710796248240,-832.433967,0.00021098,2]
[319464737,1710796248250,-832.433967,0.00021098,2]
[319464738,1710796248260,-151.0,0.00021098,2]
[319464739,1710796248270,-151.0,0.00021098,2]
[319464740,1710796248279,-1417.038246,0.00021098,2]
[319464741,1710796248288,-1417.038246,0.00021098,2]
[319464742,1710796248297,-151.0,0.00021098,2]
[319464743,1710796248308,-151.0,0.00021098,2]
[319464744,1710796248317,-500.0,0.00021099,2]
[319464745,1710796248326,-205.27555849,0.00021099,2]
[319464746,1710796248335,-5003.12754987,0.00021099,2]
[319464747,1710796248344,-233695.8112545,0.000211,2]
[319464748,1710796248376,-981.52525388,0.000211,2]
[319464749,1710796248387,-14054.18590217,0.000211,2]
[319464750,1710796248451,-0.01466495,0.000211,2]
[319464751,1710796248462,-3829.4137061,0.000211,2]
[319464752,1710796248671,-144234.3021781,0.000211,2]
[319464766,1710797134097,-261.86215814,0.00015824,2]
[319464767,1710797134117,-249.931795,0.00015825,2]
[319464771,1710797366128,-1180.7507,0.00015725,2]
[319464772,1710797366164,-2276.2519663,0.00015825,2]
[319464773,1710797366202,-916.75613602,0.00015825,2]
[319464774,1710797366243,-295.15163022,0.00015825,2]
[319464775,1710797366274,-1128.80653776,0.00015825,2]
[319464776,1710797366307,-212.71096021,0.00015825,2]
[319464778,1710797372104,-104.67434201,0.00015825,2]
[319464779,1710797372126,-73.49849661,0.00016698,2]
[319464792,1710797432326,-79.53430728,0.00016698,2]
[319464793,1710797432337,-361.54227624,0.00016798,2]
[319464794,1710797432346,-22.12541648,0.000169,5]
[319464795,1710797432373,-0.0497613,0.000169,5]
[319464807,1710797438473,-361.5,0.000169,5]
[319464810,1710797438539,-5448.32482222,0.000169,5]
[319464811,1710797438549,-750.0,0.00017,3]
[319464812,1710797438559,-421.62,0.00017331,2]
[319464813,1710797438569,-153.03280389,0.00017538,2]
[319464814,1710797438578,-1500.0,0.00017878,2]
[319464815,1710797438587,-150.99,0.0001799,2]
[319464816,1710797438596,-406.46600259,0.00017998,2]
[319464817,1710797438606,-150.0,0.00017998,2]
[319464818,1710797438615,-1594.32733997,0.00017999,2]
[319464819,1710797438625,-1796.62649603,0.00018,2]
[319464820,1710797438647,-0.24498875,0.00018,2]
[319464821,1710797438680,-1521.3779619,0.00018,2]
[319464822,1710797438702,-78.92869514,0.00018,2]
[319464823,1710797438736,-0.82294426,0.00018,2]
[319464824,1710797438746,-499.99,0.00018,2]
[319464825,1710797438755,-153.03280389,0.00018379,2]
[319464826,1710797438764,-1500.0,0.00018426,2]
[319464827,1710797438773,-158.58,0.00018821,2]
[319464828,1710797438782,-1500.0,0.00018974,2]
[319464829,1710797438793,-800.0,0.00019,3]
[319464830,1710797438802,-250.0,0.00019008,2]
[319464831,1710797438812,-749.12,0.00019024,2]
[319464832,1710797438821,-250.88,0.00019099,2]
[319464833,1710797438830,-250.0,0.00019148,2]
[319464834,1710797438839,-282.87,0.00019148,2]
[319464835,1710797438849,-500.0,0.00019178,2]
[319464836,1710797438858,-215.47,0.00019188,2]
[319464838,1710797438867,-1089.58,0.00019202,2]
[319464840,1710797438877,-200.0,0.00019209,2]
[319464842,1710797438886,-177.47,0.00019217,2]
[319464843,1710797438895,-330.31,0.00019217,2]
[319464844,1710797438907,-153.03280389,0.00019219,2]
[319464845,1710797438916,-154.56106172,0.00019431,2]
[319464846,1710797438926,-1500.0,0.00019522,2]
[319464848,1710797438935,-421.62,0.00019595,2]
[319464849,1710797438945,-184.89,0.00019726,2]
[319464850,1710797438954,-175.64449742,0.00019926,2]
[319464851,1710797438963,-1465.99980728,0.00019948,2]
[319464852,1710797438972,-478.01663323,0.0002,7]
[319464853,1710797438983,-250.0,0.0002,2]
[319464854,1710797438992,-150.0,0.0002,2]
[319464855,1710797439001,-150.0,0.0002,2]
[319464856,1710797439010,-150.0,0.0002,2]
[319464857,1710797439019,-178.29,0.0002,2]
[319464858,1710797439029,-155.0,0.0002,2]
[319464859,1710797439038,-153.03280389,0.0002006,2]
[319464860,1710797439047,-1500.0,0.0002007,2]
[319464861,1710797439056,-397.5887702,0.00020099,2]
[319464862,1710797439065,-807.0,0.00020173,2]
[319464863,1710797439075,-300.0,0.00020181,2]
[319464864,1710797439086,-150.0,0.00020187,2]
[319464865,1710797439096,-600.0,0.000203,2]
[319464866,1710797439107,-275.5,0.000203,2]
[319464867,1710797439117,-150.0,0.00020391,2]
[319464868,1710797439129,-2102.78417244,0.00020469,30]
[319464869,1710797439139,-171.61,0.00020481,2]
[319464870,1710797439149,-176.080272,0.00020548,2]
[319464871,1710797439159,-155.0,0.00020548,2]
[319464872,1710797439169,-178.29,0.00020548,2]
[319464873,1710797439179,-1500.0,0.00020618,2]
[319464874,1710797439188,-621.83266436,0.00020698,3]
[319464875,1710797439198,-36002.8014,0.00020799,2]
[319464876,1710797439207,-500.0,0.000208,2]
[319464877,1710797439216,-2151.64120938,0.000208,2]
[319464878,1710797439225,-393.67373592,0.000208,2]
[319464879,1710797439235,-463.60761314,0.000208,2]
[319464880,1710797439244,-2500.0,0.000208,2]
[319464881,1710797439254,-1000.0,0.000208,2]
[319464882,1710797439263,-800.0,0.0002083,2]
[319464883,1710797439273,-200.0,0.0002083,2]
[319464884,1710797439282,-500.0,0.0002083,2]
[319464885,1710797439292,-278.0,0.00020831,2]
[319464886,1710797439301,-258.927893,0.00020856,2]
[319464887,1710797439310,-223.85449031,0.00020889,2]
[319464888,1710797439319,-2937.15514,0.0002089,2]
[319464889,1710797439329,-503.40364247,0.00020892,2]
[319464890,1710797439338,-151.031905,0.00020896,3]
[319464891,1710797439347,-151.031905,0.00020896,2]
[319464892,1710797439356,-151.031905,0.00020896,3]
[319464893,1710797439365,-151.031905,0.00020896,2]
[319464894,1710797439375,-151.031905,0.00020896,5]
[319464895,1710797439386,-151.031905,0.00020896,5]
[319464896,1710797439396,-333.031906,0.00020897,4]
[319464897,1710797439406,-333.031906,0.00020897,4]
[319464898,1710797439415,-333.031906,0.00020897,4]
[319464899,1710797439425,-333.031906,0.00020897,4]
[319464900,1710797439434,-333.031906,0.00020897,4]
[319464901,1710797439443,-333.031906,0.00020897,3]
[319464902,1710797439453,-333.031906,0.00020897,3]
[319464903,1710797439462,-333.031906,0.00020897,3]
[319464904,1710797439471,-333.031906,0.00020897,3]
[319464905,1710797439481,-333.031906,0.00020897,3]
[319464906,1710797439491,-151.031905,0.00020897,5]
[319464907,1710797439501,-151.031905,0.00020897,5]
[319464908,1710797439510,-200.0,0.00020898,2]
[319464909,1710797439519,-800.0,0.00020898,2]
[319464910,1710797439528,-200.0,0.00020898,2]
[319464911,1710797439537,-500.0,0.00020898,2]
[319464912,1710797439546,-333.031906,0.00020898,2]
[319464913,1710797439556,-333.031906,0.00020898,2]
[319464914,1710797439565,-333.031906,0.00020898,2]
[319464915,1710797439574,-333.031906,0.00020898,2]
[319464916,1710797439583,-333.031906,0.00020898,2]
[319464917,1710797439592,-333.031906,0.00020898,3]
[319464918,1710797439601,-333.031906,0.00020898,3]
[319464919,1710797439610,-333.031906,0.00020898,3]
[319464920,1710797439620,-333.031906,0.00020898,3]
[319464921,1710797439629,-333.031906,0.00020898,3]
[319464922,1710797439638,-333.031906,0.00020898,4]
[319464923,1710797439648,-333.031906,0.00020898,4]
[319464924,1710797439658,-333.031906,0.00020898,4]
[319464925,1710797439667,-333.031906,0.00020898,4]
[319464926,1710797439676,-333.031906,0.00020898,4]
[319464927,1710797439686,-151.031905,0.00020898,5]
[319464928,1710797439695,-333.031905,0.00020898,5]
[319464929,1710797439704,-458.02380382,0.00020899,2]
[319464930,1710797439713,-500.0,0.00020899,2]
[319464931,1710797439722,-500.0,0.00020899,2]
[319464932,1710797439732,-500.0,0.00020899,2]
[319464933,1710797439742,-500.0,0.00020899,2]
[319464934,1710797439752,-500.0,0.00020899,2]
[319464935,1710797439762,-500.0,0.00020899,2]
[319464936,1710797439771,-298.36321097,0.00020899,2]
[319464937,1710797439780,-500.0,0.00020899,2]
[319464938,1710797439790,-500.0,0.00020899,2]
[319464939,1710797439800,-500.0,0.00020899,2]
[319464940,1710797439811,-500.0,0.00020899,2]
[319464941,1710797439820,-500.0,0.00020899,2]
[319464942,1710797439829,-500.0,0.00020899,2]
[319464943,1710797439838,-413.78819093,0.00020899,2]
[319464944,1710797439847,-500.0,0.00020899,2]
[319464945,1710797439857,-500.0,0.00020899,2]
[319464946,1710797439866,-500.0,0.00020899,2]
[319464947,1710797439876,-284.70596806,0.00020899,2]
[319464948,1710797439890,-500.0,0.00020899,2]
[319464949,1710797439900,-500.0,0.00020899,2]
[319464950,1710797439909,-500.0,0.00020899,2]
[319464951,1710797439919,-500.0,0.00020899,2]
[319464952,1710797439930,-500.0,0.00020899,2]
[319464953,1710797439940,-500.0,0.00020899,2]
[319464954,1710797439950,-500.0,0.00020899,2]
[319464955,1710797439960,-500.0,0.00020899,2]
[319464956,1710797439970,-500.0,0.00020899,2]
[319464957,1710797439981,-500.0,0.00020899,2]
[319464958,1710797439992,-500.0,0.00020899,2]
[319464959,1710797440002,-500.0,0.00020899,2]
[319464960,1710797440012,-500.0,0.00020899,2]
[319464961,1710797440022,-500.0,0.00020899,2]
[319464962,1710797440032,-500.0,0.00020899,2]
[319464963,1710797440044,-500.0,0.00020899,2]
[319464964,1710797440055,-500.0,0.00020899,2]
[319464965,1710797440064,-500.0,0.00020899,2]
[319464966,1710797440074,-500.0,0.00020899,2]
[319464967,1710797440084,-385.74909429,0.00020899,2]
[319464968,1710797440094,-500.0,0.00020899,2]
[319464969,1710797440104,-500.0,0.00020899,2]
[319464970,1710797440113,-500.0,0.00020899,2]
[319464971,1710797440123,-603.17784674,0.00020899,2]
[319464972,1710797440132,-500.0,0.00020899,2]
[319464973,1710797440142,-362.35712792,0.00020899,2]
[319464974,1710797440151,-174.45311169,0.00020899,2]
[319464975,1710797440160,-500.0,0.00020899,2]
[319464976,1710797440169,-500.0,0.00020899,2]
[319464979,1710797440373,-500.0,0.00020899,2]
[319464980,1710797440383,-500.0,0.00020899,2]
[319464981,1710797440392,-500.0,0.00020899,2]
[319464982,1710797440401,-500.0,0.00020899,2]
[319464983,1710797440410,-500.0,0.00020899,2]
[319464984,1710797440419,-500.0,0.00020899,2]
[319464985,1710797440428,-500.0,0.00020899,2]
[319464986,1710797440438,-500.0,0.00020899,2]
[319464987,1710797440447,-240.88717755,0.00020899,2]
[319464988,1710797440456,-500.0,0.00020899,2]
[319464989,1710797440465,-500.0,0.00020899,2]
[319464990,1710797440474,-500.0,0.00020899,2]
[319464991,1710797440483,-500.0,0.00020899,2]
[319464992,1710797440493,-51596.6173,0.000209,2]
[319464993,1710797440502,-241428.2363,0.000209,2]
[319464994,1710797440511,-2743.2695,0.000209,2]
[319464995,1710797440520,-21948.4449,0.000209,2]
[319464996,1710797440529,-1285.7776,0.000209,2]
[319464997,1710797440538,-178.2091,0.000209,2]
[319464998,1710797440547,-5900.00462026,0.000209,2]
[319464999,1710797440556,-7500.0,0.000209,2]
[319465000,1710797440565,-150.41679594,0.000209,2]
[319465001,1710797440574,-180.66650417,0.000209,2]
[319465002,1710797440584,-153.03280389,0.000209,2]
[319465003,1710797440593,-307.06412408,0.000209,2]
[319465004,1710797440602,-800.0,0.0002093,2]
[319465005,1710797440610,-200.0,0.0002093,2]
[319465006,1710797440619,-500.0,0.0002093,2]
[319465007,1710797440628,-155.11116532,0.00020998,2]
[319465008,1710797440637,-172.82675035,0.00020998,2]
[319465009,1710797440646,-10539.23930663,0.00020998,2]
[319465010,1710797440655,-1060.19175182,0.00020998,2]
[319465011,1710797440664,-272.30761929,0.00020998,2]
[319465012,1710797440674,-214.34659075,0.00020998,2]
[319465013,1710797440683,-409.72680051,0.00020998,2]
[319465014,1710797440692,-345.29368143,0.00020998,2]
[319465015,1710797440701,-1008.3,0.00020999,2]
[319465016,1710797440711,-786.0,0.00021,2]
[319465017,1710797440720,-1329215.96889904,0.00021,2]
[319465018,1710797440755,-266545.4649986,0.00021,2]
[319465019,1710797440765,-850.0,0.00021,3]
[319465020,1710797440774,-49878.0,0.00021,2]
[319465021,1710797440783,-151.09827313,0.00021044,2]
[319465022,1710797440794,-150.5,0.00021066,15]
[319465023,1710797440803,-438.0,0.0002107,12]
[319465024,1710797440813,-180.0,0.00021076,2]
[319465025,1710797440822,-150.5,0.00021076,15]
[319465026,1710797440831,-150.5,0.00021086,15]
[319465027,1710797440841,-2151.64120936,0.00021096,2]
[319465028,1710797440851,-393.67373584,0.00021096,2]
[319465029,1710797440861,-1605.25,0.00021096,2]
[319465030,1710797440871,-516.76,0.00021096,2]
[319465031,1710797440882,-178.29,0.00021096,2]
[319465032,1710797440892,-374.63238718,0.00021098,2]
[319465033,1710797440902,-205.27555849,0.00021099,2]
[319465034,1710797440916,-5003.12754987,0.00021099,2]
[319465035,1710797440926,-230209.17567074,0.000211,2]
[319465036,1710797440936,-3287.86744429,0.000211,2]
[319465037,1710797440945,-2719.52671357,0.000211,2]
[319465038,1710797440955,-2198.08460813,0.000211,2]
[319465039,1710797440965,-503.53524705,0.000211,2]
[319465040,1710797440975,-2000.0,0.000211,2]
[319465041,1710797440985,-200.0,0.000211,2]
[319465042,1710797440995,-2000.0,0.000211,2]
[319465043,1710797441004,-200.0,0.000211,2]
[319465044,1710797441014,-200.0,0.000211,2]
[319465045,1710797441023,-200.0,0.000211,2]
[319465046,1710797441032,-7946.6869337,0.00021101,2]
[319465047,1710797441043,-661.88117773,0.00021101,2]
[319465048,1710797441053,-33584.6426275,0.00021101,2]
[319465049,1710797441062,-570.9430883,0.00021101,2]
[319465050,1710797441071,-19939.734749,0.00021152,2]
[319465051,1710797441081,-5942.9367879,0.00021152,2]
[319465052,1710797441090,-4928.094919,0.00021152,2]
[319465053,1710797441099,-1500.0,0.00021166,2]
[319465054,1710797441108,-10857.87145321,0.00021182,2]
[319465055,1710797441117,-1231.41755431,0.000212,2]
[319465056,1710797441127,-5900.00462021,0.00021257,2]
[319465057,1710797441136,-185.4,0.00021276,2]
[319465058,1710797441145,-200.0,0.00021311,2]
[319465059,1710797441153,-2000.0,0.00021311,2]
[319465060,1710797441162,-200.0,0.00021311,2]
[319465061,1710797441171,-176.080272,0.0002137,2]
[319465062,1710797441180,-125364.4441103,0.00021375,2]
[319465063,1710797441189,-489.05178931,0.00021386,2]
[319465064,1710797441199,-2151.64120936,0.00021391,2]
[319465065,1710797441208,-393.67373584,0.00021391,2]
[319465066,1710797441217,-749.12,0.00021402,2]
[319465067,1710797441226,-10000.0,0.00021462,2]
[319465068,1710797441236,-250.88,0.00021487,2]
[319465069,1710797441245,-163.70130469,0.00021515,2]
[319465070,1710797441254,-200.0,0.00021524,2]
[319465071,1710797441263,-2000.0,0.00021524,2]
[319465072,1710797441272,-200.0,0.00021524,2]
[319465073,1710797441280,-9769.63410768,0.00021597,2]
[319465074,1710797441888,-7238.99658183,0.00021597,2]
[319465075,1710797441914,-1010.5173091,0.00021597,2]
[319465076,1710797441925,-290.752,0.00021597,2]
[319465077,1710797441936,-426.37,0.00021597,2]
[319465078,1710797441947,-462.90720022,0.00021597,2]
[319465079,1710797441959,-334.64135132,0.00021597,2]
[319465080,1710797441986,-299.44046367,0.00021597,2]
[319465081,1710797442008,-19163.68667502,0.00021597,2]
[319465082,1710797442069,-961.85264348,0.00021597,2]
[319465122,1710797443527,-261.86215814,0.00016899,2]
[319465123,1710797443537,-299.78054484,0.000208,2]
[319465124,1710797443548,-148.64052802,0.00021597,2]
[319465125,1710797443580,-16429.60697243,0.00021597,2]
[319465126,1710797443589,-5362.21438855,0.00021614,2]
[319465127,1710797443598,-5900.00462021,0.00021615,2]
[319465128,1710797443607,-1236.99387146,0.00021617,4]
[319465129,1710797443616,-178.29,0.00021644,2]
[319465130,1710797443625,-14926.45,0.00021663,2]
[319465131,1710797443634,-475.9654048,0.00021668,2]
[319465133,1710797443644,-189.9726802,0.00021668,2]
[319465135,1710797443654,-194.30092088,0.00021669,2]
[319465137,1710797443662,-2151.64120936,0.00021687,2]
[319465139,1710797443672,-393.67373584,0.00021687,2]
[319465141,1710797443680,-4914.58716625,0.00021698,2]
[319465143,1710797443689,-505396.86355521,0.00021714,2]
[319465145,1710797443698,-1500.0,0.00021714,2]
[319465147,1710797443707,-814749.90326055,0.00021717,2]
[319465148,1710797443716,-151.0,0.00021717,2]
[319465150,1710797443726,-151.0,0.00021717,2]
[319465153,1710797443735,-151.0,0.00021717,2]
[319465154,1710797443744,-151.322142,0.00021717,2]
[319465156,1710797443754,-151.0,0.00021717,2]
[319465157,1710797443763,-151.0,0.00021717,2]
[319465158,1710797443772,-151.0,0.00021717,2]
[319465159,1710797443782,-151.0,0.00021717,2]
[319465160,1710797443792,-151.0,0.00021717,2]
[319465161,1710797443801,-151.0,0.00021717,2]
[319465162,1710797443811,-151.0,0.00021717,2]
[319465163,1710797443820,-253.843202,0.00021717,2]
[319465164,1710797443830,-151.0,0.00021717,2]
[319465165,1710797443839,-253.843202,0.00021717,2]
[319465166,1710797443848,-151.0,0.00021717,2]
[319465167,1710797443857,-151.0,0.00021717,2]
[319465168,1710797443866,-151.0,0.00021717,2]
[319465169,1710797443876,-269.578568,0.00021717,2]
[319465170,1710797443888,-269.578568,0.00021717,2]
[319465171,1710797443897,-408.2,0.00021736,2]
[319465172,1710797443907,-921.95,0.00021736,2]
[319465173,1710797443916,-200.0,0.00021739,2]
[319465174,1710797443926,-200.0,0.00021739,2]
[319465175,1710797443935,-155.0,0.00021776,2]
[319465176,1710797443945,-12540.4977663,0.0002178,2]
[319465177,1710797443957,-14411.65960979,0.0002178,2]
[319465178,1710797443969,-190264.50579816,0.0002178,2]
[319465179,1710797443979,-160245.0,0.00021781,2]
[319465180,1710797443990,-403.0,0.00021781,2]
[319465181,1710797444000,-155.0,0.00021781,2]
[319465182,1710797444010,-215.0,0.0002179,2]
[319465183,1710797444021,-4536.916964,0.000218,2]
[319465184,1710797444031,-177.94040363,0.000218,2]
[319465185,1710797444042,-177.94040344,0.000218,2]
[319465186,1710797444053,-177.94040344,0.000218,2]
[319465187,1710797444063,-177.94040344,0.000218,2]
[319465188,1710797444073,-177.94040344,0.000218,2]
[319465189,1710797444083,-177.94040344,0.000218,2]
[319465190,1710797444093,-177.94040344,0.000218,2]
[319465191,1710797444103,-177.94040344,0.000218,2]
[319465192,1710797444113,-177.94040344,0.000218,2]
[319465193,1710797444122,-177.94040344,0.000218,2]
[319465194,1710797444132,-177.94040344,0.000218,2]
[319465195,1710797444142,-177.94040344,0.000218,2]
[319465196,1710797444152,-177.94040344,0.000218,2]
[319465197,1710797444162,-177.94040344,0.000218,2]
[319465198,1710797444171,-177.94040344,0.000218,2]
[319465199,1710797444181,-177.94040344,0.000218,2]
[319465200,1710797444190,-177.94040344,0.000218,2]
[319465201,1710797444200,-177.94040344,0.000218,2]
[319465202,1710797444209,-177.94040344,0.000218,2]
[319465203,1710797444219,-177.94040344,0.000218,2]
[319465204,1710797444228,-297.25432323,0.00021817,2]
[319465205,1710797444240,-626.33877677,0.00021817,2]
[319465206,1710797444249,-421.62,0.00021859,2]
[319465207,1710797444258,-1026.0,0.00021863,2]
[319465208,1710797444267,-1236.99387142,0.00021873,5]
[319465209,1710797444276,-425.06298313,0.000219,2]
[319465210,1710797444285,-26851.86617083,0.000219,5]
[319465211,1710797444306,-4429.44027,0.000219,5]
[319465212,1710797444317,-44468.52289053,0.000219,5]
[319465213,1710797444328,-9837.94506352,0.000219,5]
[319465214,1710797444348,-22082.06423053,0.000219,5]
[319465215,1710797444359,-373.36548959,0.000219,5]
[319465216,1710797444371,-4039.96202958,0.000219,5]
[319465232,1710797446450,-758.18,0.00020198,2]
[319465233,1710797446460,-559.26,0.0002089,3]
[319465234,1710797446470,-648.0,0.00021,2]
[319465235,1710797446479,-299.78054482,0.00021063,2]
[319465236,1710797446488,-131813.78486936,0.000219,5]
[319465237,1710797446504,-97832.17594579,0.000219,5]
[319465238,1710797446513,-500.0,0.000219,2]
[319465239,1710797446522,-2000.0,0.000219,2]
[319465240,1710797446531,-151.0,0.000219,2]
[319465241,1710797446540,-151.0,0.000219,2]
[319465242,1710797446550,-153.875079,0.000219,2]
[319465243,1710797446559,-600.0,0.000219,2]
[319465244,1710797446568,-151.0,0.000219,2]
[319465245,1710797446577,-565.0,0.000219,2]
[319465246,1710797446586,-151.0,0.000219,2]
[319465247,1710797446595,-151.0,0.000219,2]
[319465248,1710797446604,-859.059289,0.000219,2]
[319465249,1710797446614,-859.059289,0.000219,2]
[319465250,1710797446623,-151.01441,0.000219,2]
[319465251,1710797446633,-2000.0,0.000219,2]
[319465252,1710797446642,-151.0,0.000219,2]
[319465253,1710797446652,-151.0,0.000219,2]
[319465254,1710797446662,-151.0,0.000219,2]
[319465255,1710797446671,-151.0,0.000219,2]
[319465256,1710797446680,-151.0,0.000219,2]
[319465257,1710797446690,-152.569929,0.000219,2]
[319465258,1710797446700,-151.0,0.000219,2]
[319465259,1710797446709,-151.0,0.000219,2]
[319465260,1710797446719,-265.591043,0.000219,2]
[319465261,1710797446728,-151.0,0.000219,2]
[319465263,1710797446736,-151.0,0.000219,2]
[319465265,1710797446745,-265.591043,0.000219,2]
[319465267,1710797446754,-291.663308,0.000219,2]
[319465269,1710797446763,-151.0,0.000219,2]
[319465271,1710797446773,-151.0,0.000219,2]
[319465273,1710797446781,-153.220285,0.000219,2]
[319465275,1710797446791,-151.0,0.000219,2]
[319465276,1710797446801,-749.19057,0.000219,2]
[319465279,1710797446811,-749.19057,0.000219,2]
[319465281,1710797446820,-151.0,0.000219,2]
[319465282,1710797446830,-207.70944913,0.000219,2]
[319465283,1710797446840,-151.0,0.000219,2]
[319465284,1710797446849,-1275.334422,0.000219,2]
[319465285,1710797446859,-1275.334422,0.000219,2]
[319465287,1710797446868,-207.70944911,0.000219,2]
[319465289,1710797446879,-666.031905,0.00021908,3]
[319465291,1710797446888,-666.031905,0.00021908,3]
[319465293,1710797446898,-333.031905,0.00021908,2]
[319465295,1710797446909,-333.031905,0.00021908,2]
[319465297,1710797446918,-166.88342114,0.00021915,2]
[319465299,1710797446928,-204.73314214,0.00021915,2]
[319465301,1710797446937,-155.0,0.00021915,2]
[319465303,1710797446946,-2549.93142396,0.00021915,2]
[319465304,1710797446956,-165.04612717,0.00021915,2]
[319465305,1710797446965,-938.72545553,0.00021915,2]
[319465306,1710797446974,-193.42559001,0.00021916,2]
[319465307,1710797446983,-246.40068234,0.00021917,2]
[319465308,1710797446993,-184.95442951,0.00021917,2]
[319465309,1710797447003,-323.27729153,0.00021917,2]
[319465310,1710797447012,-500.0,0.00021917,2]
[319465311,1710797447021,-500.0,0.00021917,2]
[319465312,1710797447031,-500.0,0.00021917,2]
[319465313,1710797447040,-500.0,0.00021917,2]
[319465314,1710797447051,-500.0,0.00021917,2]
[319465315,1710797447060,-500.0,0.00021917,2]
[319465316,1710797447069,-389.73381258,0.00021917,2]
[319465317,1710797447078,-159.87263707,0.00021917,2]
[319465318,1710797447087,-500.0,0.00021917,2]
[319465319,1710797447096,-500.0,0.00021917,2]
[319465320,1710797447105,-500.0,0.00021917,2]
[319465321,1710797447115,-500.0,0.00021917,2]
[319465322,1710797447124,-500.0,0.00021917,2]
[319465323,1710797447134,-500.0,0.00021917,2]
[319465324,1710797447144,-500.0,0.00021917,2]
[319465325,1710797447153,-500.0,0.00021917,2]
[319465326,1710797447162,-500.0,0.00021917,2]
[319465327,1710797447172,-500.0,0.00021917,2]
[319465328,1710797447181,-206.38474443,0.00021917,2]
[319465329,1710797447191,-500.0,0.00021917,2]
[319465330,1710797447201,-500.0,0.00021917,2]
[319465331,1710797447211,-500.0,0.00021917,2]
[319465332,1710797447221,-500.0,0.00021917,2]
[319465333,1710797447231,-500.0,0.00021917,2]
[319465334,1710797447240,-500.0,0.00021917,2]
[319465335,1710797447249,-500.0,0.00021917,2]
[319465336,1710797447259,-500.0,0.00021917,2]
[319465337,1710797447267,-500.0,0.00021917,2]
[319465338,1710797447277,-500.0,0.00021917,2]
[319465339,1710797447286,-500.0,0.00021917,2]
[319465340,1710797447296,-500.0,0.00021917,2]
[319465341,1710797447305,-500.0,0.00021917,2]
[319465342,1710797447314,-151.53608235,0.00021917,2]
[319465343,1710797447323,-500.0,0.00021917,2]
[319465344,1710797447332,-500.0,0.00021917,2]
[319465345,1710797447341,-500.0,0.00021917,2]
[319465346,1710797447351,-2243.32,0.00021917,2]
[319465347,1710797447360,-500.0,0.00021917,2]
[319465348,1710797447370,-500.0,0.00021917,2]
[319465349,1710797447379,-655.05,0.00021917,2]
[319465350,1710797447389,-500.0,0.00021917,2]